lending/lending_fUSD_20250114
["ID","MTS","AMOUNT","RATE_DAILY","PERIOD"]
[348951195,1736889050284,-500.0,0.00010999,2]
[348951196,1736889050298,-642.17214006,0.00010999,2]
[348951197,1736889050308,-217.17069528,0.00010999,2]
[348951198,1736889050319,-202.29395412,0.00010999,2]
[348951199,1736889050330,-666.0,0.00010999,2]
[348951200,1736889050340,-133943.0,0.00011,2]
[348951201,1736889050352,-1259716.43533904,0.00011,2]
[348951202,1736889050365,-151.0,0.00011,2]
[348951203,1736889050379,-550.0,0.00011,2]
[348951204,1736889050389,-250.0,0.00011,2]
[348951205,1736889050400,-250.0,0.00011,2]
[348951206,1736889050411,-420.9,0.00011,2]
[348951207,1736889050423,-3000.0,0.0001106,2]
[348951208,1736889050435,-437.26,0.00011068,2]
[348951209,1736889050447,-344.74,0.00011068,2]
[348951210,1736889050459,-150.0,0.00011068,2]
[348951211,1736889050471,-1960.12,0.00011068,2]
[348951212,1736889050482,-437.26,0.00011068,2]
[348951213,1736889050494,-150.0,0.00011068,2]
[348951214,1736889050505,-437.26,0.00011068,2]
[348951215,1736889050516,-554.45,0.00011087,2]
[348951216,1736889050527,-624.96633304,0.00011087,2]
[348951217,1736889050539,-500.0,0.00011087,2]
[348951218,1736889050550,-500.0,0.00011087,2]
[348951219,1736889050562,-638.87,0.00011087,2]
[348951220,1736889050576,-790.07,0.00011087,2]
[348951221,1736889050589,-735.53,0.00011087,2]
[348951222,1736889050600,-2063.18,0.00011087,2]
[348951223,1736889050611,-4329.64,0.00011087,2]
[348951224,1736889050623,-661.5,0.00011087,2]
[348951225,1736889050635,-500.0,0.00011087,2]
[348951226,1736889050647,-500.0,0.00011087,2]
[348951227,1736889050659,-1487.9,0.00011087,2]
[348951228,1736889050670,-1425.91,0.00011087,2]
[348951229,1736889050681,-500.0,0.00011087,2]
[348951230,1736889050692,-606.11,0.00011087,2]
[348951231,1736889050703,-839.24,0.00011087,2]
[348951232,1736889050714,-1095.49,0.00011087,2]
[348951233,1736889050725,-500.0,0.00011087,2]
[348951234,1736889050737,-1000.0,0.00011087,2]
[348951235,1736889050750,-1628.9,0.00011087,2]
[348951236,1736889050762,-1628.9,0.00011087,2]
[348951237,1736889050773,-1052.35,0.00011087,2]
[348951238,1736889050784,-500.0,0.00011088,2]
[348951239,1736889050796,-500.0,0.00011088,2]
[348951240,1736889050807,-666.0,0.00011092,2]
[348951241,1736889050819,-612.29,0.00011093,2]
[348951242,1736889050831,-558.26,0.00011093,2]
[348951243,1736889050842,-500.0,0.00011093,2]
[348951244,1736889050854,-500.0,0.00011093,2]
[348951245,1736889050864,-874.13,0.00011093,2]
[348951246,1736889050876,-537.73,0.00011093,2]
[348951247,1736889050887,-573.18,0.00011093,2]
[348951248,1736889050899,-500.0,0.00011093,2]
[348951249,1736889050910,-960.98,0.00011093,2]
[348951250,1736889050923,-500.0,0.00011093,2]
[348951251,1736889050934,-500.0,0.00011093,2]
[348951252,1736889050945,-500.0,0.00011093,2]
[348951253,1736889050957,-1585.52,0.00011093,2]
[348951254,1736889050968,-500.0,0.00011093,2]
[348951255,1736889050979,-500.0,0.00011093,2]
[348951256,1736889050991,-500.0,0.00011093,2]
[348951257,1736889051002,-500.0,0.00011093,2]
[348951258,1736889051017,-878.16,0.00011093,2]
[348951259,1736889051028,-500.0,0.00011093,2]
[348951260,1736889051039,-500.0,0.00011093,2]
[348951261,1736889051050,-500.0,0.00011093,2]
[348951262,1736889051060,-500.0,0.00011093,2]
[348951263,1736889051071,-663.982168,0.00011093,2]
[348951264,1736889051082,-500.0,0.00011093,2]
[348951265,1736889051094,-736.51,0.00011093,2]
[348951266,1736889051106,-500.0,0.00011093,2]
[348951267,1736889051116,-500.0,0.00011093,2]
[348951268,1736889051129,-562.02,0.00011093,2]
[348951269,1736889051140,-500.0,0.00011093,2]
[348951270,1736889051151,-500.0,0.00011093,2]
[348951271,1736889051164,-654.425542,0.00011093,2]
[348951272,1736889051176,-1516.14,0.00011093,2]
[348951273,1736889051187,-500.0,0.00011093,2]
[348951274,1736889051198,-500.0,0.00011093,2]
[348951275,1736889051209,-2415.41,0.00011093,2]
[348951276,1736889051221,-589.3,0.00011093,2]
[348951277,1736889051232,-500.0,0.00011093,2]
[348951278,1736889051243,-792.69,0.00011093,2]
[348951279,1736889051254,-500.0,0.00011093,2]
[348951280,1736889051265,-609.48,0.00011093,2]
[348951281,1736889051276,-500.0,0.00011093,2]
[348951282,1736889051287,-756.05,0.00011093,2]
[348951283,1736889051297,-500.0,0.00011093,2]
[348951284,1736889051309,-500.0,0.00011093,2]
[348951285,1736889051321,-2019.75,0.00011093,2]
[348951286,1736889051332,-544.83,0.00011093,2]
[348951287,1736889051345,-500.0,0.00011093,2]
[348951288,1736889051357,-2544.68,0.00011093,2]
[348951289,1736889051368,-613.12,0.00011093,2]
[348951290,1736889051380,-500.0,0.00011093,2]
[348951291,1736889051392,-500.0,0.00011093,2]
[348951292,1736889051403,-500.0,0.00011093,2]
[348951293,1736889051414,-2143.33,0.00011093,2]
[348951294,1736889051426,-500.0,0.00011093,2]
[348951295,1736889051438,-377.13,0.00011093,2]
[348951296,1736889051450,-500.0,0.00011093,2]
[348951297,1736889051462,-500.0,0.00011093,2]
[348951298,1736889051473,-500.0,0.00011093,2]
[348951299,1736889051485,-500.0,0.00011093,2]
[348951300,1736889051497,-1261.69,0.00011093,2]
[348951301,1736889051509,-500.0,0.00011093,2]
[348951302,1736889051521,-197.84,0.00011093,2]
[348951303,1736889051533,-229.46477072,0.00011093,2]
[348951304,1736889051545,-506.09,0.00011093,2]
[348951305,1736889051556,-500.0,0.00011093,2]
[348951306,1736889051568,-500.0,0.00011093,2]
[348951307,1736889051580,-500.0,0.00011093,2]
[348951308,1736889051592,-500.0,0.00011093,2]
[348951309,1736889051603,-515.65,0.00011093,2]
[348951310,1736889051615,-500.0,0.00011093,2]
[348951311,1736889051627,-683.79,0.00011093,2]
[348951312,1736889051639,-2194.0,0.00011093,2]
[348951313,1736889051650,-500.0,0.00011093,2]
[348951314,1736889051661,-500.0,0.00011093,2]
[348951315,1736889051672,-997.51,0.00011093,2]
[348951316,1736889051685,-500.0,0.00011093,2]
[348951317,1736889051697,-579.57,0.00011093,2]
[348951318,1736889051709,-500.0,0.00011093,2]
[348951319,1736889051721,-500.0,0.00011093,2]
[348951320,1736889051731,-1805.76,0.00011093,2]
[348951321,1736889051742,-745.52,0.00011093,2]
[348951322,1736889051754,-637.03,0.00011093,2]
[348951323,1736889051764,-500.0,0.00011093,2]
[348951324,1736889051777,-1373.49,0.00011093,2]
[348951325,1736889051789,-590.18,0.00011093,2]
[348951326,1736889051801,-961.15,0.00011093,2]
[348951327,1736889051812,-3899.66,0.00011093,2]
[348951328,1736889051823,-500.0,0.00011093,2]
[348951329,1736889051833,-500.0,0.00011093,2]
[348951330,1736889051844,-646.45,0.00011093,2]
[348951331,1736889051855,-520.28,0.00011093,2]
[348951332,1736889051867,-500.0,0.00011093,2]
[348951333,1736889051877,-500.0,0.00011093,2]
[348951334,1736889051888,-500.0,0.00011093,2]
[348951335,1736889051900,-634.35,0.00011093,2]
[348951336,1736889051910,-458.22,0.00011093,2]
[348951337,1736889051920,-718.77,0.00011093,2]
[348951338,1736889051931,-500.0,0.00011093,2]
[348951339,1736889051942,-500.0,0.00011093,2]
[348951340,1736889051952,-500.0,0.00011093,2]
[348951341,1736889051963,-428.27,0.00011093,2]
[348951342,1736889051974,-1180.4,0.00011093,2]
[348951343,1736889051985,-500.0,0.00011093,2]
[348951344,1736889051995,-500.0,0.00011093,2]
[348951345,1736889052006,-500.0,0.00011093,2]
[348951346,1736889052016,-2819.76,0.00011093,2]
[348951347,1736889052027,-2416.88,0.00011093,2]
[348951348,1736889052038,-1337.68,0.00011093,2]
[348951349,1736889052049,-216.29434087,0.00011093,2]
[348951350,1736889052060,-902.28,0.00011093,2]
[348951351,1736889052071,-549.52,0.00011093,2]
[348951352,1736889052082,-500.0,0.00011093,2]
[348951353,1736889052093,-746.11,0.00011093,2]
[348951354,1736889052375,-1458.52,0.00011093,2]
[348951355,1736889052403,-1031.97,0.00011093,2]
[348951356,1736889052416,-811.67,0.00011093,2]
[348951357,1736889052427,-500.0,0.00011093,2]
[348951358,1736889052437,-791.8,0.00011093,2]
[348951359,1736889052447,-500.0,0.00011093,2]
[348951360,1736889052456,-1951.46,0.00011093,2]
[348951361,1736889052465,-666.04,0.00011093,2]
[348951362,1736889052474,-904.14,0.00011093,2]
[348951363,1736889052483,-500.0,0.00011093,2]
[348951364,1736889052492,-564.24,0.00011093,2]
[348951365,1736889052501,-1622.18,0.00011093,2]
[348951366,1736889052510,-1390.08,0.00011093,2]
[348951367,1736889052519,-1177.2,0.00011093,2]
[348951368,1736889052528,-849.08,0.00011093,2]
[348951369,1736889052537,-500.0,0.00011093,2]
[348951370,1736889052546,-500.0,0.00011093,2]
[348951371,1736889052555,-2184.92,0.00011093,2]
[348951372,1736889052565,-500.0,0.00011093,2]
[348951373,1736889052576,-500.0,0.00011093,2]
[348951374,1736889052585,-915.88,0.00011093,2]
[348951375,1736889052594,-887.61,0.00011093,2]
[348951376,1736889052603,-500.0,0.00011093,2]
[348951377,1736889052613,-644.34,0.00011093,2]
[348951378,1736889052622,-500.0,0.00011093,2]
[348951379,1736889052631,-608.71,0.00011093,2]
[348951380,1736889052640,-500.0,0.00011093,2]
[348951381,1736889052650,-494.5936943,0.00011095,2]
[348951382,1736889052659,-541.2,0.00011095,2]
[348951383,1736889052669,-1511.81,0.00011095,2]
[348951384,1736889052679,-709.29,0.00011095,2]
[348951385,1736889052687,-500.0,0.00011095,2]
[348951386,1736889052696,-500.0,0.00011095,2]
[348951387,1736889052705,-1928.70295496,0.00011141,2]
[348951388,1736889052714,-500.0,0.00011153,2]
[348951389,1736889052723,-500.0,0.00011225,2]
[348951390,1736889052732,-429.93842545,0.00011229,2]
[348951391,1736889052742,-3183.484,0.00011277,2]
[348951392,1736889052750,-175.888,0.00011277,2]
[348951393,1736889052760,-500.0,0.00011361,2]
[348951394,1736889052769,-500.0,0.00011361,2]
[348951395,1736889052777,-638.87,0.00011361,2]
[348951396,1736889052786,-790.07,0.00011361,2]
[348951397,1736889052795,-735.53,0.00011361,2]
[348951398,1736889052804,-2063.18,0.00011361,2]
[348951399,1736889052813,-4329.64,0.00011361,2]
[348951400,1736889052822,-661.5,0.00011361,2]
[348951401,1736889052832,-500.0,0.00011361,2]
[348951402,1736889052841,-500.0,0.00011361,2]
[348951403,1736889052850,-1487.9,0.00011361,2]
[348951404,1736889052859,-1425.91,0.00011361,2]
[348951405,1736889052867,-500.0,0.00011361,2]
[348951406,1736889052876,-606.11,0.00011361,2]
[348951407,1736889052886,-839.24,0.00011361,2]
[348951408,1736889052894,-1095.49,0.00011361,2]
[348951409,1736889052903,-500.0,0.00011361,2]
[348951410,1736889052913,-1000.0,0.00011361,2]
[348951411,1736889052922,-1628.9,0.00011361,2]
[348951412,1736889052931,-1628.9,0.00011361,2]
[348951413,1736889052940,-1052.35,0.00011361,2]
[348951414,1736889052949,-500.0,0.00011362,2]
[348951415,1736889052959,-558.26,0.00011367,2]
[348951416,1736889052968,-500.0,0.00011367,2]
[348951417,1736889052979,-500.0,0.00011367,2]
[348951418,1736889052988,-874.13,0.00011367,2]
[348951419,1736889052998,-537.73,0.00011367,2]
[348951420,1736889053007,-573.18,0.00011367,2]
[348951421,1736889053017,-500.0,0.00011367,2]
[348951422,1736889053026,-960.98,0.00011367,2]
[348951423,1736889053035,-500.0,0.00011367,2]
[348951424,1736889053044,-500.0,0.00011367,2]
[348951425,1736889053053,-571.4,0.00011367,2]
[348951426,1736889053062,-1585.52,0.00011367,2]
[348951427,1736889053071,-500.0,0.00011367,2]
[348951428,1736889053081,-500.0,0.00011367,2]
[348951429,1736889053090,-500.0,0.00011367,2]
[348951430,1736889053099,-500.0,0.00011367,2]
[348951431,1736889053108,-500.0,0.00011367,2]
[348951432,1736889053118,-878.16,0.00011367,2]
[348951433,1736889053127,-500.0,0.00011367,2]
[348951434,1736889053136,-500.0,0.00011367,2]
[348951435,1736889053145,-500.0,0.00011367,2]
[348951436,1736889053155,-663.982168,0.00011367,2]
[348951437,1736889053164,-500.0,0.00011367,2]
[348951438,1736889053173,-736.51,0.00011367,2]
[348951439,1736889053183,-500.0,0.00011367,2]
[348951440,1736889053192,-496.94706892,0.00011367,2]
[348951441,1736889053201,-562.02,0.00011367,2]
[348951442,1736889053210,-500.0,0.00011367,2]
[348951443,1736889053219,-500.0,0.00011367,2]
[348951444,1736889053228,-654.425542,0.00011367,2]
[348951445,1736889053237,-1516.14,0.00011367,2]
[348951446,1736889053246,-500.0,0.00011367,2]
[348951447,1736889053255,-500.0,0.00011367,2]
[348951448,1736889053264,-589.3,0.00011367,2]
[348951449,1736889053273,-2415.41,0.00011367,2]
[348951450,1736889053282,-500.0,0.00011367,2]
[348951451,1736889053291,-792.69,0.00011367,2]
[348951452,1736889053301,-500.0,0.00011367,2]
[348951453,1736889053316,-609.48,0.00011367,2]
[348951454,1736889053325,-500.0,0.00011367,2]
[348951455,1736889053336,-756.05,0.00011367,2]
[348951456,1736889053346,-500.0,0.00011367,2]
[348951457,1736889053358,-500.0,0.00011367,2]
[348951458,1736889053367,-2019.75,0.00011367,2]
[348951459,1736889053376,-544.83,0.00011367,2]
[348951460,1736889053385,-500.0,0.00011367,2]
[348951461,1736889053394,-2544.68,0.00011367,2]
[348951462,1736889053403,-613.12,0.00011367,2]
[348951463,1736889053412,-500.0,0.00011367,2]
[348951464,1736889053421,-500.0,0.00011367,2]
[348951465,1736889053431,-500.0,0.00011367,2]
[348951466,1736889053441,-2143.33,0.00011367,2]
[348951467,1736889053450,-500.0,0.00011367,2]
[348951468,1736889053460,-500.0,0.00011367,2]
[348951469,1736889053469,-500.0,0.00011367,2]
[348951470,1736889053478,-1261.69,0.00011367,2]
[348951471,1736889053487,-500.0,0.00011367,2]
[348951472,1736889053496,-506.09,0.00011367,2]
[348951473,1736889053504,-500.0,0.00011367,2]
[348951474,1736889053513,-500.0,0.00011367,2]
[348951475,1736889053522,-500.0,0.00011367,2]
[348951476,1736889053531,-500.0,0.00011367,2]
[348951477,1736889053540,-515.65,0.00011367,2]
[348951478,1736889053550,-500.0,0.00011367,2]
[348951479,1736889053559,-683.79,0.00011367,2]
[348951480,1736889053571,-2194.0,0.00011367,2]
[348951481,1736889053580,-500.0,0.00011367,2]
[348951482,1736889053590,-500.0,0.00011367,2]
[348951483,1736889053599,-997.51,0.00011367,2]
[348951484,1736889053608,-500.0,0.00011367,2]
[348951485,1736889053620,-579.57,0.00011367,2]
[348951486,1736889053629,-500.0,0.00011367,2]
[348951487,1736889053639,-500.0,0.00011367,2]
[348951488,1736889053651,-1805.76,0.00011367,2]
[348951489,1736889053661,-745.52,0.00011367,2]
[348951490,1736889053671,-637.03,0.00011367,2]
[348951491,1736889053681,-500.0,0.00011367,2]
[348951492,1736889053691,-1373.49,0.00011367,2]
[348951493,1736889053699,-590.18,0.00011367,2]
[348951494,1736889053710,-961.15,0.00011367,2]
[348951495,1736889053719,-3899.66,0.00011367,2]
[348951496,1736889053729,-450.81144655,0.00011367,2]
[348951497,1736889053738,-439.39118533,0.00011367,2]
[348951498,1736889053748,-646.45,0.00011367,2]
[348951499,1736889053757,-520.28,0.00011367,2]
[348951500,1736889053767,-500.0,0.00011367,2]
[348951501,1736889053776,-500.0,0.00011367,2]
[348951502,1736889053786,-500.0,0.00011367,2]
[348951503,1736889053795,-871.0,0.00011367,2]
[348951504,1736889053805,-634.35,0.00011367,2]
[348951505,1736889053816,-718.77,0.00011367,2]
[348951506,1736889053827,-611.5658139,0.00011367,2]
[348951507,1736889053837,-500.0,0.00011367,2]
[348951508,1736889053847,-500.0,0.00011367,2]
[348951509,1736889053857,-1180.4,0.00011367,2]
[348951510,1736889053867,-500.0,0.00011367,2]
[348951511,1736889053877,-500.0,0.00011367,2]
[348951512,1736889053886,-500.0,0.00011367,2]
[348951513,1736889053896,-2819.76,0.00011367,2]
[348951514,1736889053906,-2416.88,0.00011367,2]
[348951515,1736889053915,-1337.68,0.00011367,2]
[348951516,1736889053925,-902.28,0.00011367,2]
[348951517,1736889053935,-549.52,0.00011367,2]
[348951518,1736889053944,-500.0,0.00011367,2]
[348951519,1736889053954,-746.11,0.00011367,2]
[348951520,1736889053963,-1458.52,0.00011367,2]
[348951521,1736889053974,-1031.97,0.00011367,2]
[348951522,1736889053984,-811.67,0.00011367,2]
[348951523,1736889053994,-500.0,0.00011367,2]
[348951524,1736889054005,-791.8,0.00011367,2]
[348951525,1736889054015,-500.0,0.00011367,2]
[348951526,1736889054024,-1951.46,0.00011367,2]
[348951527,1736889054034,-666.04,0.00011367,2]
[348951528,1736889054044,-904.14,0.00011367,2]
[348951529,1736889054053,-500.0,0.00011367,2]
[348951530,1736889054063,-564.24,0.00011367,2]
[348951531,1736889054072,-1622.18,0.00011367,2]
[348951532,1736889054081,-1390.08,0.00011367,2]
[348951533,1736889054092,-1177.2,0.00011367,2]
[348951534,1736889054101,-849.08,0.00011367,2]
[348951535,1736889054110,-500.0,0.00011367,2]
[348951536,1736889054120,-177.86077303,0.00011367,2]
[348951537,1736889054129,-2184.92,0.00011367,2]
[348951538,1736889054138,-500.0,0.00011367,2]
[348951539,1736889054148,-500.0,0.00011367,2]
[348951540,1736889054158,-915.88,0.00011367,2]
[348951541,1736889054168,-887.61,0.00011367,2]
[348951542,1736889054178,-500.0,0.00011367,2]
[348951543,1736889054188,-644.34,0.00011367,2]
[348951544,1736889054198,-500.0,0.00011367,2]
[348951545,1736889054208,-608.71,0.00011367,2]
[348951546,1736889054218,-541.2,0.00011369,2]
[348951547,1736889054228,-1511.81,0.00011369,2]
[348951548,1736889054238,-709.29,0.00011369,2]
[348951549,1736889054248,-500.0,0.00011369,2]
[348951550,1736889054258,-500.0,0.00011369,2]
[348951551,1736889054267,-3000.0,0.0001137,2]
[348951552,1736889054277,-300.7463886,0.00011403,2]
[348951553,1736889054286,-429.93842545,0.00011406,2]
[348951554,1736889054296,-150.0,0.00011414,2]
[348951555,1736889054305,-352.88,0.00011442,2]
[348951556,1736889054316,-500.0,0.00011499,2]
[348951557,1736889054325,-14596.939874,0.000115,2]
[348951558,1736889054335,-200.0,0.00011543,2]
[348951559,1736889054345,-1928.70295496,0.00011555,2]
[348951560,1736889054356,-500.0,0.00011634,2]
[348951561,1736889054366,-500.0,0.00011635,2]
[348951562,1736889054375,-500.0,0.00011635,2]
[348951563,1736889054385,-638.87,0.00011635,2]
[348951564,1736889054395,-790.07,0.00011635,2]
[348951565,1736889054405,-735.53,0.00011635,2]
[348951566,1736889054415,-2063.18,0.00011635,2]
[348951567,1736889054424,-4329.64,0.00011635,2]
[348951568,1736889054434,-661.5,0.00011635,2]
[348951569,1736889054443,-500.0,0.00011635,2]
[348951570,1736889054453,-471.15234429,0.00011635,2]
[348951571,1736889054463,-1487.9,0.00011635,2]
[348951572,1736889054473,-1425.91,0.00011635,2]
[348951573,1736889054483,-606.11,0.00011635,2]
[348951574,1736889054493,-839.24,0.00011635,2]
[348951575,1736889054503,-1095.49,0.00011635,2]
[348951576,1736889054513,-500.0,0.00011635,2]
[348951577,1736889054522,-1000.0,0.00011635,2]
[348951578,1736889054532,-1628.9,0.00011635,2]
[348951579,1736889054541,-1628.9,0.00011635,2]
[348951580,1736889054551,-1052.35,0.00011635,2]
[348951581,1736889054561,-500.0,0.00011636,2]
[348951582,1736889054575,-151.0,0.00011641,2]
[348951583,1736889054585,-558.26,0.00011641,2]
[348951584,1736889054595,-151.0,0.00011641,2]
[348951585,1736889054605,-500.0,0.00011641,2]
[348951586,1736889054615,-500.0,0.00011641,2]
[348951587,1736889054625,-874.13,0.00011641,2]
[348951588,1736889054635,-537.73,0.00011641,2]
[348951589,1736889054646,-573.18,0.00011641,2]
[348951590,1736889054655,-500.0,0.00011641,2]
[348951591,1736889054665,-960.98,0.00011641,2]
[348951592,1736889054674,-500.0,0.00011641,2]
[348951593,1736889054684,-500.0,0.00011641,2]
[348951594,1736889054694,-1585.52,0.00011641,2]
[348951595,1736889054703,-500.0,0.00011641,2]
[348951596,1736889054713,-500.0,0.00011641,2]
[348951597,1736889054722,-381.20584878,0.00011641,2]
[348951598,1736889054732,-500.0,0.00011641,2]
[348951599,1736889054741,-500.0,0.00011641,2]
[348951600,1736889054751,-500.0,0.00011641,2]
[348951601,1736889054761,-878.16,0.00011641,2]
[348951602,1736889054771,-500.0,0.00011641,2]
[348951603,1736889054781,-500.0,0.00011641,2]
[348951604,1736889054791,-663.982168,0.00011641,2]
[348951605,1736889054800,-500.0,0.00011641,2]
[348951606,1736889054811,-736.51,0.00011641,2]
[348951607,1736889054823,-500.0,0.00011641,2]
[348951608,1736889054832,-562.02,0.00011641,2]
[348951609,1736889054842,-500.0,0.00011641,2]
[348951610,1736889054852,-500.0,0.00011641,2]
[348951611,1736889054861,-654.425542,0.00011641,2]
[348951612,1736889054871,-1516.14,0.00011641,2]
[348951613,1736889054880,-500.0,0.00011641,2]
[348951614,1736889054890,-500.0,0.00011641,2]
[348951615,1736889054900,-589.3,0.00011641,2]
[348951616,1736889054910,-2415.41,0.00011641,2]
[348951617,1736889054919,-500.0,0.00011641,2]
[348951618,1736889054931,-792.69,0.00011641,2]
[348951619,1736889054941,-500.0,0.00011641,2]
[348951620,1736889054951,-609.48,0.00011641,2]
[348951621,1736889054961,-500.0,0.00011641,2]
[348951622,1736889054970,-756.05,0.00011641,2]
[348951623,1736889054980,-500.0,0.00011641,2]
[348951624,1736889054990,-500.0,0.00011641,2]
[348951625,1736889055000,-2019.75,0.00011641,2]
[348951626,1736889055010,-544.83,0.00011641,2]
[348951627,1736889055021,-500.0,0.00011641,2]
[348951628,1736889055032,-2544.68,0.00011641,2]
[348951629,1736889055041,-613.12,0.00011641,2]
[348951630,1736889055052,-500.0,0.00011641,2]
[348951631,1736889055061,-500.0,0.00011641,2]
[348951632,1736889055072,-500.0,0.00011641,2]
[348951633,1736889055082,-2143.33,0.00011641,2]
[348951634,1736889055091,-500.0,0.00011641,2]
[348951635,1736889055100,-500.0,0.00011641,2]
[348951636,1736889055110,-500.0,0.00011641,2]
[348951637,1736889055120,-1261.69,0.00011641,2]
[348951638,1736889055130,-500.0,0.00011641,2]
[348951639,1736889055139,-506.09,0.00011641,2]
[348951640,1736889055149,-500.0,0.00011641,2]
[348951641,1736889055157,-217.03,0.00011641,2]
[348951642,1736889055167,-500.0,0.00011641,2]
[348951643,1736889055176,-500.0,0.00011641,2]
[348951644,1736889055185,-515.65,0.00011641,2]
[348951645,1736889055194,-500.0,0.00011641,2]
[348951646,1736889055203,-683.79,0.00011641,2]
[348951647,1736889055212,-500.0,0.00011641,2]
[348951648,1736889055222,-2194.0,0.00011641,2]
[348951649,1736889055231,-500.0,0.00011641,2]
[348951650,1736889055241,-997.51,0.00011641,2]
[348951651,1736889055251,-500.0,0.00011641,2]
[348951652,1736889055260,-579.57,0.00011641,2]
[348951653,1736889055270,-500.0,0.00011641,2]
[348951654,1736889055280,-500.0,0.00011641,2]
[348951655,1736889055290,-1805.76,0.00011641,2]
[348951656,1736889055301,-745.52,0.00011641,2]
[348951657,1736889055312,-637.03,0.00011641,2]
[348951658,1736889055322,-500.0,0.00011641,2]
[348951659,1736889055332,-1373.49,0.00011641,2]
[348951660,1736889055343,-590.18,0.00011641,2]
[348951661,1736889055353,-961.15,0.00011641,2]
[348951662,1736889055363,-3899.66,0.00011641,2]
[348951663,1736889055372,-646.45,0.00011641,2]
[348951664,1736889055381,-520.28,0.00011641,2]
[348951665,1736889055390,-500.0,0.00011641,2]
[348951666,1736889055399,-500.0,0.00011641,2]
[348951667,1736889055409,-500.0,0.00011641,2]
[348951668,1736889055419,-871.0,0.00011641,2]
[348951669,1736889055429,-634.35,0.00011641,2]
[348951670,1736889055438,-718.77,0.00011641,2]
[348951671,1736889055448,-231.18,0.00011641,2]
[348951672,1736889055624,-500.0,0.00011641,2]
[348951673,1736889055635,-1180.4,0.00011641,2]
[348951674,1736889055646,-500.0,0.00011641,2]
[348951675,1736889055656,-500.0,0.00011641,2]
[348951676,1736889055669,-500.0,0.00011641,2]
[348951677,1736889055679,-2819.76,0.00011641,2]
[348951678,1736889055690,-2416.88,0.00011641,2]
[348951679,1736889055701,-1337.68,0.00011641,2]
[348951680,1736889055712,-902.28,0.00011641,2]
[348951681,1736889055723,-549.52,0.00011641,2]
[348951682,1736889055732,-500.0,0.00011641,2]
[348951683,1736889055742,-746.11,0.00011641,2]
[348951684,1736889055753,-1458.52,0.00011641,2]
[348951685,1736889055762,-1031.97,0.00011641,2]
[348951686,1736889055772,-500.0,0.00011641,2]
[348951687,1736889055782,-811.67,0.00011641,2]
[348951688,1736889055791,-791.8,0.00011641,2]
[348951689,1736889055802,-500.0,0.00011641,2]
[348951690,1736889055811,-1951.46,0.00011641,2]
[348951691,1736889055821,-666.04,0.00011641,2]
[348951692,1736889055831,-904.14,0.00011641,2]
[348951693,1736889055840,-500.0,0.00011641,2]
[348951694,1736889055849,-564.24,0.00011641,2]